fUSD/lending_fUSD_20240719
["ID","MTS","AMOUNT","RATE_DAILY","PERIOD"]
[332668982,1721415037635,-1405.95,0.00034246,14]
[332668983,1721415037645,-598.73,0.00034246,14]
[332668984,1721415037655,-1697.36,0.00034246,14]
[332668985,1721415037664,-500.0,0.00034246,14]
[332668986,1721415037673,-1838.98,0.00034246,14]
[332668987,1721415037682,-544.69,0.00034246,14]
[332668988,1721415037693,-500.0,0.00034246,14]
[332668989,1721415037703,-974.83,0.00034246,14]
[332668990,1721415037712,-500.0,0.00034246,14]
[332668991,1721415037721,-500.0,0.00034246,14]
[332668992,1721415037731,-500.0,0.00034246,14]
[332668993,1721415037740,-500.0,0.00034246,14]
[332668994,1721415037750,-1004.91,0.00034246,14]
[332668995,1721415037761,-500.0,0.00034246,14]
[332668996,1721415037770,-500.0,0.00034246,14]
[332668997,1721415037780,-500.0,0.00034246,14]
[332668998,1721415037789,-500.0,0.00034246,14]
[332668999,1721415037799,-647.43,0.00034246,14]
[332669000,1721415037809,-941.2,0.00034246,14]
[332669001,1721415037818,-547.32,0.00034246,14]
[332669002,1721415037828,-500.0,0.00034246,14]
[332669003,1721415037837,-500.0,0.00034246,14]
[332669004,1721415037847,-587.16,0.00034246,7]
[332669005,1721415037856,-726.47,0.00034246,14]
[332669006,1721415037866,-500.0,0.00034246,14]
[332669007,1721415037877,-500.0,0.00034246,14]
[332669008,1721415037887,-693.28,0.00034246,14]
[332669009,1721415037896,-874.37,0.00034246,14]
[332669010,1721415037906,-500.0,0.00034246,14]
[332669011,1721415037915,-500.0,0.00034246,14]
[332669012,1721415037925,-500.0,0.00034246,14]
[332669013,1721415037935,-1084.02,0.00034246,14]
[332669014,1721415037945,-782.89,0.00034246,14]
[332669015,1721415037956,-500.0,0.00034246,14]
[332669016,1721415037965,-500.0,0.00034246,14]
[332669017,1721415037975,-500.0,0.00034246,14]
[332669018,1721415037984,-305.96,0.00034246,14]
[332669019,1721415037994,-500.0,0.00034246,14]
[332669020,1721415038003,-850.67,0.00034246,14]
[332669021,1721415038013,-513.50282466,0.00034246,14]
[332669022,1721415038022,-2049.99,0.00034246,14]
[332669023,1721415038033,-500.0,0.00034246,14]
[332669024,1721415038043,-4149.32,0.00034246,14]
[332669025,1721415038052,-500.0,0.00034246,14]
[332669026,1721415038062,-500.0,0.00034246,14]
[332669027,1721415038072,-500.0,0.00034246,14]
[332669028,1721415038082,-500.0,0.00034246,14]
[332669029,1721415038091,-545.13,0.00034246,14]
[332669030,1721415038100,-500.0,0.00034246,14]
[332669031,1721415038111,-982.14,0.00034246,14]
[332669032,1721415038122,-500.0,0.00034246,14]
[332669033,1721415038132,-500.0,0.00034246,14]
[332669034,1721415038142,-540.7,0.00034246,14]
[332669035,1721415038153,-500.0,0.00034246,14]
[332669036,1721415038163,-500.0,0.00034246,14]
[332669037,1721415038173,-500.0,0.00034246,14]
[332669038,1721415038183,-1590.22,0.00034246,14]
[332669039,1721415038192,-850.38,0.00034246,14]
[332669040,1721415038202,-500.0,0.00034246,14]
[332669042,1721415038213,-1867.44,0.00034246,14]
[332669044,1721415038224,-500.0,0.00034246,14]
[332669046,1721415038234,-1351.36,0.00034246,14]
[332669048,1721415038246,-500.0,0.00034246,14]
[332669050,1721415038258,-500.0,0.00034246,14]
[332669052,1721415038268,-500.0,0.00034246,14]
[332669054,1721415038277,-500.0,0.00034246,14]
[332669055,1721415038287,-1160.91,0.00034246,14]
[332669057,1721415038297,-500.0,0.00034246,14]
[332669059,1721415038306,-500.0,0.00034246,14]
[332669061,1721415038315,-500.0,0.00034246,14]
[332669063,1721415038326,-927.66,0.00034246,14]
[332669065,1721415038335,-2413.48,0.00034246,14]
[332669067,1721415038345,-1701.7,0.00034246,14]
[332669069,1721415038354,-500.0,0.00034246,14]
[332669071,1721415038363,-500.0,0.00034246,14]
[332669073,1721415038372,-7127.8,0.00034246,14]
[332669075,1721415038382,-803.18,0.00034246,14]
[332669076,1721415038391,-500.0,0.00034246,14]
[332669077,1721415038400,-674.93,0.00034246,14]
[332669078,1721415038411,-2019.96,0.00034246,14]
[332669079,1721415038421,-910.19,0.00034246,14]
[332669080,1721415038433,-1128.67,0.00034246,14]
[332669081,1721415038445,-500.0,0.00034246,14]
[332669082,1721415038454,-9665.01,0.00034246,14]
[332669083,1721415038465,-500.0,0.00034246,14]
[332669084,1721415038475,-500.0,0.00034246,14]
[332669085,1721415038485,-1532.69,0.00034246,14]
[332669086,1721415038494,-892.18,0.00034246,14]
[332669087,1721415038503,-2600.92,0.00034246,14]
[332669088,1721415038513,-3117.87,0.00034246,14]
[332669089,1721415038523,-500.0,0.00034246,14]
[332669090,1721415038532,-877.02,0.00034246,14]
[332669091,1721415038541,-1069.57,0.00034246,14]
[332669092,1721415038550,-500.0,0.00034246,14]
[332669093,1721415038559,-3253.27,0.00034246,14]
[332669094,1721415038569,-500.0,0.00034246,14]
[332669095,1721415038578,-2912.6,0.00034246,14]
[332669096,1721415038587,-500.0,0.00034246,14]
[332669097,1721415038596,-1384.76,0.00034246,14]
[332669098,1721415038606,-500.0,0.00034246,14]
[332669099,1721415038615,-560.91,0.00034246,14]
[332669100,1721415038624,-989.37,0.00034246,14]
[332669101,1721415038634,-2842.07,0.00034246,14]
[332669102,1721415038643,-956.0,0.00034246,14]
[332669103,1721415038652,-37.80328881,0.00034246,14]
[332669115,1721415039133,-618.00671119,0.00034246,14]
[332669116,1721415039143,-500.0,0.00034246,14]
[332669117,1721415039153,-62.35318881,0.00034246,14]
[332669118,1721415039164,-1329.39681119,0.00034246,14]
[332669119,1721415039174,-500.0,0.00034246,14]
[332669120,1721415039183,-2802.39,0.00034246,14]
[332669121,1721415039193,-1753.47,0.00034246,14]
[332669122,1721415039202,-1747.27,0.00034246,14]
[332669123,1721415039211,-724.89,0.00034246,14]
[332669125,1721415039220,-684.91,0.00034246,14]
[332669126,1721415039230,-500.0,0.00034246,14]
[332669128,1721415039240,-500.0,0.00034246,14]
[332669130,1721415039252,-1814.6,0.00034246,14]
[332669132,1721415039261,-1484.59,0.00034246,14]
[332669134,1721415039270,-727.05,0.00034246,14]
[332669136,1721415039280,-2699.38,0.00034246,14]
[332669138,1721415039290,-1461.64,0.00034246,14]
[332669140,1721415039299,-500.0,0.00034246,14]
[332669142,1721415039308,-5182.2,0.00034246,14]
[332669144,1721415039319,-2709.67,0.00034246,14]
[332669146,1721415039329,-500.0,0.00034246,14]
[332669148,1721415039339,-898.89,0.00034246,14]
[332669150,1721415039348,-500.0,0.00034246,14]
[332669152,1721415039357,-500.0,0.00034246,14]
[332669154,1721415039366,-500.0,0.00034246,14]
[332669156,1721415039375,-1044.68,0.00034246,14]
[332669158,1721415039385,-612.11,0.00034246,14]
[332669159,1721415039394,-4168.99,0.00034246,14]
[332669161,1721415039403,-5242.34,0.00034246,14]
[332669163,1721415039413,-500.0,0.00034246,14]
[332669165,1721415039422,-504.30414091,0.00034246,14]
[332669167,1721415039431,-6738.94,0.00034246,14]
[332669169,1721415039440,-500.0,0.00034246,14]
[332669171,1721415039450,-8272.24,0.00034246,14]
[332669173,1721415039459,-500.0,0.00034246,14]
[332669175,1721415039469,-12158.0,0.00034246,14]
[332669177,1721415039479,-500.0,0.00034246,14]
[332669179,1721415039488,-596.33,0.00034246,14]
[332669181,1721415039497,-500.0,0.00034246,14]
[332669183,1721415039506,-640.6,0.00034246,14]
[332669185,1721415039515,-500.0,0.00034246,14]
[332669186,1721415039525,-710.67,0.00034246,14]
[332669189,1721415039534,-500.0,0.00034246,14]
[332669191,1721415039544,-3002.66,0.00034246,14]
[332669192,1721415039554,-1200.31,0.00034246,14]
[332669194,1721415039563,-1923.43,0.00034246,14]
[332669196,1721415039572,-500.0,0.00034246,14]
[332669198,1721415039582,-556.93,0.00034246,14]
[332669200,1721415039591,-1144.24,0.00034246,14]
[332669203,1721415039601,-500.0,0.00034246,14]
[332669205,1721415039610,-500.0,0.00034246,14]
[332669207,1721415039619,-500.0,0.00034246,14]
[332669209,1721415039629,-4548.52,0.00034246,14]
[332669210,1721415039638,-2644.86,0.00034246,14]
[332669212,1721415039647,-3238.69,0.00034246,14]
[332669214,1721415039657,-500.0,0.00034246,14]
[332669216,1721415039666,-1430.76,0.00034246,14]
[332669219,1721415039676,-500.0,0.00034246,14]
[332669221,1721415039686,-510.64,0.00034246,14]
[332669223,1721415039697,-500.0,0.00034246,14]
[332669225,1721415039706,-500.0,0.00034246,14]
[332669227,1721415039717,-2289.3,0.00034246,14]
[332669229,1721415039727,-942.81,0.00034246,14]
[332669231,1721415039737,-598.62,0.00034246,14]
[332669233,1721415039748,-5206.63,0.00034246,14]
[332669235,1721415039757,-500.0,0.00034246,14]
[332669237,1721415039767,-500.0,0.00034246,14]
[332669239,1721415039776,-500.0,0.00034246,14]
[332669241,1721415039785,-1323.56,0.00034246,14]
[332669251,1721415039873,-519.37,0.00034246,14]
[332669253,1721415039882,-5172.81,0.00034246,14]
[332669255,1721415039891,-875.5,0.00034246,14]
[332669257,1721415039901,-1044.1,0.00034246,14]
[332669259,1721415039910,-596.83,0.00034246,14]
[332669261,1721415039920,-8299.9,0.00034246,14]
[332669263,1721415039929,-500.0,0.00034246,14]
[332669265,1721415039938,-500.0,0.00034246,14]
[332669267,1721415039949,-3098.13,0.00034246,14]
[332669269,1721415039960,-5270.56,0.00034246,14]
[332669271,1721415039969,-3184.49,0.00034246,14]
[332669273,1721415039979,-698.83,0.00034246,14]
[332669275,1721415039988,-6788.75,0.00034246,14]
[332669277,1721415039997,-500.0,0.00034246,14]
[332669279,1721415040007,-799.52,0.00034246,14]
[332669281,1721415040017,-7127.06,0.00034246,14]
[332669283,1721415040026,-249.09042555,0.00034246,14]
[332669285,1721415040035,-532.82,0.00034246,14]
[332669287,1721415040044,-500.0,0.00034246,14]
[332669289,1721415040054,-822.64,0.00034246,14]
[332669291,1721415040063,-500.0,0.00034246,14]
[332669293,1721415040072,-500.0,0.00034246,14]
[332669295,1721415040082,-1188.79,0.00034246,14]
[332669297,1721415040091,-1180.0,0.00034246,14]
[332669299,1721415040100,-500.0,0.00034246,14]
[332669301,1721415040110,-7557.47,0.00034246,14]
[332669303,1721415040120,-2207.54,0.00034246,14]
[332669305,1721415040129,-2708.64,0.00034246,14]
[332669307,1721415040138,-500.0,0.00034246,14]
[332669309,1721415040147,-3265.12,0.00034246,14]
[332669311,1721415040157,-500.0,0.00034246,14]
[332669313,1721415040166,-2280.42,0.00034246,14]
[332669315,1721415040175,-3957.79,0.00034246,14]
[332669317,1721415040185,-810.62,0.00034246,14]
[332669319,1721415040195,-3214.88,0.00034246,14]
[332669321,1721415040204,-500.0,0.00034246,14]
[332669323,1721415040213,-800.2,0.00034246,14]
[332669325,1721415040222,-1653.8,0.00034246,14]
[332669327,1721415040232,-500.0,0.00034246,14]
[332669329,1721415040241,-3786.76,0.00034246,14]
[332669331,1721415040253,-1323.71,0.00034246,14]
[332669333,1721415040262,-500.0,0.00034246,14]
[332669336,1721415040272,-500.0,0.00034246,14]
[332669339,1721415040281,-500.0,0.00034246,14]
[332669341,1721415040291,-2407.04,0.00034246,14]
[332669343,1721415040300,-500.0,0.00034246,14]
[332669345,1721415040309,-1324.51,0.00034246,14]
[332669347,1721415040318,-537.19,0.00034246,14]
[332669349,1721415040330,-500.0,0.00034246,14]
[332669351,1721415040339,-500.0,0.00034246,14]
[332669353,1721415040349,-500.0,0.00034246,14]
[332669355,1721415040358,-3263.43,0.00034246,14]
[332669357,1721415040367,-3153.53,0.00034246,14]
[332669359,1721415040376,-1085.88,0.00034246,14]
[332669363,1721415040386,-2999.95,0.00034246,14]
[332669367,1721415040395,-500.0,0.00034246,14]
[332669369,1721415040404,-984.93,0.00034246,14]
[332669371,1721415040413,-579.31,0.00034246,14]
[332669373,1721415040422,-3249.0,0.00034246,14]
[332669375,1721415040431,-3168.23,0.00034246,14]
[332669377,1721415040440,-510.5,0.00034246,14]
[332669380,1721415040450,-500.0,0.00034246,14]
[332669382,1721415040459,-5915.37,0.00034246,14]
[332669384,1721415040468,-849.48,0.00034246,14]
[332669386,1721415040478,-500.0,0.00034246,14]
[332669388,1721415040487,-1025.73,0.00034246,14]
[332669390,1721415040497,-1130.17,0.00034246,14]
[332669392,1721415040506,-500.0,0.00034246,14]
[332669394,1721415040516,-865.5,0.00034246,14]
[332669396,1721415040525,-2641.0,0.00034246,14]
[332669398,1721415040535,-500.0,0.00034246,14]
[332669400,1721415040544,-6787.81,0.00034246,14]
[332669402,1721415040553,-3522.68,0.00034246,14]
[332669404,1721415040563,-500.0,0.00034246,14]
[332669406,1721415040572,-500.0,0.00034246,14]
[332669408,1721415040582,-917.53,0.00034246,14]
[332669410,1721415040591,-952.84,0.00034246,14]
[332669412,1721415040603,-1063.67,0.00034246,14]
[332669414,1721415040612,-1138.5,0.00034246,14]
[332669416,1721415040622,-1910.3,0.00034246,14]
[332669418,1721415040631,-6106.58,0.00034246,14]
[332669420,1721415040640,-2549.13,0.00034246,14]
[332669422,1721415040650,-4233.24,0.00034246,14]
[332669424,1721415040659,-4125.3,0.00034246,14]
[332669426,1721415040668,-2688.09,0.00034246,14]
[332669428,1721415040678,-500.0,0.00034246,14]
[332669430,1721415040687,-500.0,0.00034246,14]
[332669432,1721415040697,-1381.21,0.00034246,14]
[332669434,1721415040706,-500.0,0.00034246,14]
[332669436,1721415040715,-500.0,0.00034246,14]
[332669438,1721415040723,-500.0,0.00034246,14]
[332669440,1721415040732,-1490.76,0.00034246,14]
[332669442,1721415040742,-1563.18,0.00034246,14]
[332669444,1721415040751,-500.0,0.00034246,14]
[332669446,1721415040760,-753.46,0.00034246,14]
[332669448,1721415040769,-500.0,0.00034246,14]
[332669450,1721415040778,-1571.16,0.00034246,14]
[332669452,1721415040787,-562.94,0.00034246,14]
[332669454,1721415040801,-500.0,0.00034246,14]
[332669456,1721415040811,-553.42,0.00034246,14]
[332669458,1721415040820,-640.84,0.00034246,14]
[332669460,1721415040829,-500.0,0.00034246,14]
[332669462,1721415040838,-500.0,0.00034246,14]
[332669464,1721415040848,-2353.83,0.00034246,14]
[332669466,1721415040858,-500.0,0.00034246,14]
[332669468,1721415040867,-500.0,0.00034246,14]
[332669470,1721415040877,-500.0,0.00034246,14]
[332669472,1721415040887,-3069.45,0.00034246,14]
[332669474,1721415040897,-500.0,0.00034246,14]
[332669476,1721415040906,-555.55,0.00034246,14]
[332669478,1721415040915,-500.0,0.00034246,14]
[332669480,1721415040924,-500.0,0.00034246,14]
[332669482,1721415040934,-3715.07,0.00034246,14]
[332669483,1721415040944,-1481.43,0.00034246,14]
[332669485,1721415040954,-500.0,0.00034246,14]
[332669487,1721415040963,-6093.43,0.00034246,14]
[332669489,1721415040972,-2135.81,0.00034246,14]
[332669491,1721415040982,-500.0,0.00034246,14]
[332669493,1721415040992,-4108.61,0.00034246,14]
[332669495,1721415041001,-790.21,0.00034246,14]
[332669497,1721415041011,-500.0,0.00034246,14]
[332669499,1721415041021,-1170.7,0.00034246,14]
[332669501,1721415041030,-3086.16,0.00034246,14]
[332669503,1721415041041,-1080.3,0.00034246,14]
[332669505,1721415041050,-500.0,0.00034246,14]
[332669507,1721415041060,-602.55,0.00034246,14]
[332669509,1721415041069,-500.0,0.00034246,14]
[332669512,1721415041078,-528.15,0.00034246,14]
[332669514,1721415041088,-500.0,0.00034246,14]
[332669516,1721415041097,-2793.03,0.00034246,14]
[332669518,1721415041107,-500.0,0.00034246,14]
[332669520,1721415041116,-1994.33,0.00034246,14]
[332669522,1721415041125,-551.93,0.00034246,14]
[332669524,1721415041134,-500.0,0.00034246,14]
[332669526,1721415041143,-500.0,0.00034246,14]
[332669528,1721415041153,-1097.58,0.00034246,14]
[332669530,1721415041162,-500.0,0.00034246,14]
[332669532,1721415041171,-500.0,0.00034246,14]
[332669534,1721415041181,-500.0,0.00034246,14]
[332669536,1721415041191,-3780.16,0.00034246,14]
[332669537,1721415041201,-734.23,0.00034246,14]
[332669539,1721415041210,-3924.09,0.00034246,14]
[332669541,1721415041220,-1176.13,0.00034246,14]
[332669543,1721415041229,-500.0,0.00034246,14]
[332669545,1721415041238,-2327.79,0.00034246,14]
[332669547,1721415041250,-500.0,0.00034246,14]
[332669549,1721415041260,-2672.42,0.00034246,14]
[332669551,1721415041269,-500.0,0.00034246,14]
[332669553,1721415041278,-2264.17,0.00034246,14]
[332669555,1721415041288,-500.0,0.00034246,14]
[332669557,1721415041297,-1442.38,0.00034246,14]
[332669559,1721415041307,-500.0,0.00034246,14]
[332669561,1721415041317,-1304.11,0.00034246,14]
[332669563,1721415041327,-733.67,0.00034246,14]
[332669565,1721415041336,-500.0,0.00034246,14]
[332669567,1721415041345,-500.0,0.00034246,14]
[332669569,1721415041354,-5699.31,0.00034246,14]
[332669571,1721415041363,-735.41,0.00034246,14]
[332669573,1721415041372,-834.1,0.00034246,14]
[332669575,1721415041382,-500.0,0.00034246,14]
[332669577,1721415041391,-2233.04,0.00034246,14]
[332669579,1721415041400,-845.14,0.00034246,14]
[332669581,1721415041409,-500.0,0.00034246,14]
[332669583,1721415041418,-500.0,0.00034246,14]
[332669585,1721415041427,-507.45,0.00034246,14]
[332669587,1721415041437,-2409.76,0.00034246,14]
[332669589,1721415041447,-500.0,0.00034246,14]
[332669591,1721415041456,-1783.01,0.00034246,14]
[332669593,1721415041465,-500.0,0.00034246,14]
[332669595,1721415041475,-1220.33,0.00034246,14]
[332669597,1721415041484,-3333.35,0.00034246,14]
[332669599,1721415041495,-1000.03,0.00034246,14]
[332669601,1721415041504,-500.0,0.00034246,14]
[332669603,1721415041513,-500.0,0.00034246,14]
[332669605,1721415041523,-967.35,0.00034246,14]
[332669607,1721415041531,-500.0,0.00034246,14]
[332669609,1721415041541,-634.5,0.00034246,14]
[332669611,1721415041550,-219.53262232,0.00034343,2]
[332669613,1721415041559,-449.92182295,0.00034357,10]
[332669615,1721415041569,-1016.3,0.00034363,14]
[332669617,1721415041579,-1820.73,0.00034363,14]
[332669619,1721415041589,-1319.76,0.00034363,14]
[332669621,1721415041598,-905.09,0.00034363,14]
[332669623,1721415041608,-1835.09,0.00034363,14]
[332669625,1721415041617,-1762.59,0.00034363,14]
[332669627,1721415041626,-1218.79,0.00034363,14]
[332669629,1721415041635,-1130.72,0.00034363,14]
[332669631,1721415041646,-1190.95,0.00034363,14]
[332669633,1721415041655,-885.63,0.00034363,14]
[332669635,1721415041666,-578.0,0.00034363,14]
[332669637,1721415041675,-675.3,0.00034363,14]
[332669639,1721415041684,-931.82,0.00034363,14]
[332669641,1721415041695,-1015.53,0.00034363,14]
[332669643,1721415041705,-753.97,0.00034363,14]
[332669645,1721415041714,-500.0,0.00034363,14]
[332669647,1721415041723,-1914.78,0.00034363,14]
[332669649,1721415041735,-9056.82386229,0.00034409,15]
[332669651,1721415041745,-246.0,0.0003448,28]
[332669653,1721415041755,-3755.43,0.00034519,14]
[332669655,1721415041765,-1562.71,0.00034519,14]
[332669657,1721415041776,-5605.88,0.00034519,14]
[332669659,1721415041785,-1407.0,0.00034519,14]
[332669661,1721415041794,-597.03,0.00034519,14]
[332669663,1721415041803,-2633.53,0.00034519,14]
[332669665,1721415041813,-1006.03,0.00034519,14]
[332669666,1721415041822,-2913.88,0.00034519,14]
[332669668,1721415041831,-1310.32,0.00034519,14]
[332669670,1721415041842,-1908.01,0.00034519,14]
[332669672,1721415041851,-2318.65,0.00034519,14]
[332669674,1721415041862,-2136.16,0.00034519,14]
[332669677,1721415041874,-2323.93,0.00034519,14]
[332669679,1721415041883,-500.0,0.0003452,14]
[332669681,1721415041894,-500.0,0.0003452,14]
[332669683,1721415041904,-500.0,0.0003452,14]
[332669685,1721415041913,-500.0,0.0003452,14]
[332669687,1721415041922,-542.89,0.0003452,14]
[332669689,1721415041932,-500.0,0.0003452,14]
[332669691,1721415041943,-500.0,0.0003452,14]
[332669693,1721415041952,-500.0,0.0003452,14]
[332669695,1721415041961,-1395.67,0.0003452,14]
[332669697,1721415041971,-500.0,0.0003452,14]
[332669699,1721415041980,-500.0,0.0003452,14]
[332669701,1721415041990,-500.0,0.0003452,14]
[332669703,1721415042000,-500.0,0.0003452,14]
[332669705,1721415042009,-707.27,0.0003452,14]
[332669707,1721415042019,-604.28,0.0003452,14]
[332669709,1721415042030,-541.6,0.0003452,14]
[332669711,1721415042040,-500.0,0.0003452,14]
[332669713,1721415042049,-929.84,0.0003452,14]
[332669715,1721415042059,-500.0,0.0003452,14]
[332669717,1721415042068,-500.0,0.0003452,14]
[332669718,1721415042077,-500.0,0.0003452,14]
[332669721,1721415042087,-500.0,0.0003452,14]
[332669723,1721415042096,-500.0,0.0003452,14]
[332669725,1721415042106,-500.0,0.0003452,14]
[332669727,1721415042115,-500.0,0.0003452,14]
[332669729,1721415042124,-500.0,0.0003452,14]
[332669731,1721415042134,-992.88,0.0003452,14]
[332669733,1721415042143,-500.0,0.0003452,14]
[332669735,1721415042153,-901.69,0.0003452,14]
[332669737,1721415042162,-661.93,0.0003452,14]
[332669739,1721415042171,-500.0,0.0003452,14]
[332669741,1721415042181,-652.64,0.0003452,14]
[332669743,1721415042190,-500.0,0.0003452,14]
[332669745,1721415042200,-500.0,0.0003452,14]
[332669747,1721415042209,-500.0,0.0003452,14]
[332669749,1721415042218,-637.19,0.0003452,14]
[332669751,1721415042227,-878.69,0.0003452,14]
[332669753,1721415042236,-742.14,0.0003452,14]
[332669755,1721415042248,-500.0,0.0003452,14]
[332669757,1721415042258,-500.0,0.0003452,14]
[332669759,1721415042267,-500.0,0.0003452,14]
[332669761,1721415042276,-505.76,0.0003452,14]
[332669762,1721415042285,-500.0,0.0003452,14]
[332669764,1721415042297,-500.0,0.0003452,14]
[332669766,1721415042306,-500.0,0.0003452,14]
[332669768,1721415042315,-500.0,0.0003452,14]
[332669770,1721415042326,-500.0,0.0003452,14]
[332669773,1721415042336,-500.0,0.0003452,14]
[332669775,1721415042346,-500.0,0.0003452,14]
[332669776,1721415042355,-500.0,0.0003452,14]
[332669778,1721415042364,-643.16,0.0003452,14]
[332669780,1721415042373,-500.0,0.0003452,14]
[332669783,1721415042383,-500.0,0.0003452,14]
[332669785,1721415042392,-682.03,0.0003452,14]
[332669787,1721415042402,-500.0,0.0003452,14]
[332669789,1721415042411,-500.0,0.0003452,14]
[332669790,1721415042420,-500.0,0.0003452,14]
[332669792,1721415042430,-576.13,0.0003452,14]
[332669794,1721415042440,-500.0,0.0003452,14]
[332669796,1721415042450,-500.0,0.0003452,14]
[332669798,1721415042460,-500.0,0.0003452,14]
[332669800,1721415042469,-819.97,0.0003452,14]
[332669803,1721415042479,-500.0,0.0003452,14]
[332669804,1721415042488,-774.03,0.0003452,14]
[332669807,1721415042498,-500.0,0.0003452,14]
[332669808,1721415042508,-528.53,0.0003452,14]
[332669811,1721415042517,-500.0,0.0003452,14]
[332669813,1721415042528,-807.91,0.0003452,14]
[332669815,1721415042538,-500.0,0.0003452,14]
[332669817,1721415042549,-500.0,0.0003452,14]
[332669819,1721415042559,-613.8,0.0003452,14]
[332669821,1721415042569,-1061.11,0.0003452,14]
[332669823,1721415042579,-723.67,0.0003452,14]
[332669825,1721415042589,-500.0,0.0003452,14]
[332669827,1721415042599,-500.0,0.0003452,14]
[332669829,1721415042609,-500.0,0.0003452,14]
[332669831,1721415042619,-935.24,0.0003452,14]
[332669833,1721415042629,-500.0,0.0003452,14]
[332669835,1721415042638,-500.0,0.0003452,14]
[332669837,1721415042649,-500.0,0.0003452,14]
[332669839,1721415042658,-500.0,0.0003452,14]
[332669841,1721415042668,-500.0,0.0003452,14]
[332669843,1721415042678,-500.0,0.0003452,14]
[332669845,1721415042687,-1173.55,0.0003452,14]
[332669847,1721415042699,-1075.36,0.0003452,14]
[332669849,1721415042708,-500.0,0.0003452,14]
[332669851,1721415042718,-583.45,0.0003452,14]
[332669853,1721415042728,-500.0,0.0003452,14]
[332669855,1721415042737,-500.0,0.0003452,14]
[332669857,1721415042748,-500.0,0.0003452,14]
[332669859,1721415042758,-580.01,0.0003452,14]
[332669861,1721415042768,-500.0,0.0003452,14]
[332669863,1721415042777,-500.0,0.0003452,14]
[332669865,1721415042787,-974.55,0.0003452,14]
[332669867,1721415042796,-556.8,0.0003452,14]
[332669869,1721415042806,-500.0,0.0003452,14]
[332669871,1721415042816,-500.0,0.0003452,14]
[332669873,1721415042826,-500.0,0.0003452,14]
[332669875,1721415042835,-723.98,0.0003452,14]
[332669877,1721415042846,-500.0,0.0003452,14]
[332669879,1721415042855,-500.0,0.0003452,14]
[332669881,1721415042865,-635.98,0.0003452,14]
[332669883,1721415042877,-1230.17,0.0003452,14]
[332669885,1721415042886,-500.0,0.0003452,14]
[332669887,1721415042896,-500.0,0.0003452,14]
[332669889,1721415042906,-500.0,0.0003452,14]
[332669891,1721415042916,-813.54,0.0003452,14]
[332669893,1721415042926,-500.0,0.0003452,14]
[332669895,1721415042936,-1042.59,0.0003452,14]
[332669897,1721415042947,-2135.1,0.0003452,14]
[332669899,1721415042956,-500.0,0.0003452,14]
[332669901,1721415042966,-500.0,0.0003452,14]
[332669903,1721415042976,-500.0,0.0003452,14]
[332669905,1721415042986,-500.0,0.0003452,14]
[332669907,1721415042996,-500.0,0.0003452,14]